fUSD/lending_fUSD_20251126
["ID","MTS","AMOUNT","RATE_DAILY","PERIOD"]
[394939090,1764173446821,-500.0,0.00041835,120]
[394939091,1764173446834,-530.69689131,0.00041835,120]
[394939092,1764173446843,-500.0,0.00041835,120]
[394939093,1764173446853,-526.08520541,0.00041835,120]
[394939094,1764173446863,-500.0,0.00041835,120]
[394939095,1764173446875,-500.0,0.00041835,120]
[394939096,1764173446885,-500.0,0.00041835,120]
[394939097,1764173446894,-600.0,0.00041836,120]
[394939098,1764173446903,-877.15026966,0.0004185,2]
[394939099,1764173446912,-666.0,0.00041935,62]
[394939100,1764173446922,-666.0,0.00041935,62]
[394939101,1764173446932,-666.0,0.00041935,62]
[394939102,1764173446942,-775.56790518,0.00041935,62]
[394939103,1764173446952,-578.20924308,0.00041935,62]
[394939104,1764173446960,-506.41658604,0.00041954,7]
[394939105,1764173446969,-506.41658605,0.00041954,7]
[394939106,1764173446979,-167.37962358,0.00041955,16]
[394939107,1764173446988,-300.0,0.00042,4]
[394939108,1764173446999,-160.98971,0.00042038,12]
[394939109,1764173447008,-471.0960947,0.00042038,120]
[394939110,1764173447017,-500.0,0.00042039,7]
[394939111,1764173447027,-500.0,0.00042039,7]
[394939112,1764173447036,-150.0,0.00042039,7]
[394939113,1764173447045,-150.0,0.00042039,7]
[394939114,1764173447055,-150.0,0.00042039,7]
[394939115,1764173447066,-326.88,0.00042048,30]
[394939116,1764173447075,-500.0,0.00042048,15]
[394939117,1764173447085,-500.0,0.00042048,15]
[394939118,1764173447094,-500.0,0.00042048,15]
[394939119,1764173447103,-500.0,0.00042048,15]
[394939120,1764173447112,-500.0,0.00042048,15]
[394939121,1764173447122,-500.0,0.00042048,15]
[394939122,1764173447131,-500.0,0.00042048,15]
[394939123,1764173447140,-500.0,0.00042048,15]
[394939124,1764173447149,-500.0,0.00042048,15]
[394939125,1764173447158,-500.0,0.00042048,15]
[394939126,1764173447168,-500.0,0.00042048,31]
[394939127,1764173447177,-500.0,0.00042048,15]
[394939128,1764173447187,-315.77550123,0.00042048,15]
[394939129,1764173447196,-500.0,0.00042048,15]
[394939130,1764173447205,-500.0,0.00042048,15]
[394939131,1764173447214,-500.0,0.00042048,15]
[394939132,1764173447224,-500.0,0.00042048,15]
[394939133,1764173447233,-500.0,0.00042048,15]
[394939134,1764173447244,-500.0,0.00042048,15]
[394939135,1764173447253,-500.0,0.00042048,15]
[394939136,1764173447263,-500.0,0.00042048,15]
[394939137,1764173447273,-500.0,0.00042048,31]
[394939138,1764173447282,-1189.51665241,0.0004205,2]
[394939139,1764173447292,-1497.0,0.00042054,7]
[394939140,1764173447302,-151.0,0.00042054,120]
[394939141,1764173447311,-151.0,0.00042054,120]
[394939142,1764173447322,-151.0,0.00042054,120]
[394939143,1764173447331,-182.606437,0.00042054,120]
[394939144,1764173447340,-28229.49666654,0.00042057,21]
[394939145,1764173447349,-2285747.56847549,0.00042058,7]
[394939459,1764174632377,-300.0,0.00016999,2]
[394939460,1764174632386,-550.0,0.00016999,2]
[394939461,1764174632396,-500.0,0.00016999,2]
[394939462,1764174632406,-311.41055548,0.00017,2]
[394939463,1764174632509,-714.85895225,0.00017,2]
[394939464,1764174632520,-16931.99705351,0.00017,2]
[394939465,1764174632531,-6431.79281745,0.00017,2]
[394939492,1764174638391,-639.18999991,0.00017,2]
[394939493,1764174638412,-639.8168967,0.00017,2]
[394939494,1764174638423,-695.3195843,0.00017,2]
[394939495,1764174638487,-125979.51452602,0.00017,2]
[394939496,1764174638499,-15000.0,0.00017,2]
[394939497,1764174638511,-28819.89348259,0.00017,2]
[394939498,1764174638522,-31713.18570998,0.00017,2]
[394939638,1764174640379,-699.70301262,0.00017,2]
[394939639,1764174640544,-2200.00009843,0.00017,2]
[394939640,1764174640632,-4525.0,0.00017,2]
[394939680,1764174643904,-444.60827872,0.00017,2]
[394939681,1764174643915,-285.92,0.00017,2]
[394939682,1764174644620,-2283.13835924,0.00017,2]
[394939683,1764174644632,-16085.83928341,0.00017,2]
[394939684,1764174644697,-36598.81138939,0.00017,2]
[394939685,1764174644707,-500.0,0.00017973,2]
[394939686,1764174644716,-500.0,0.00017973,2]
[394939687,1764174644725,-500.0,0.00017973,2]
[394939688,1764174644734,-195.30824433,0.00017973,2]
[394939689,1764174644743,-500.0,0.00017973,2]
[394939690,1764174644752,-706644.2784169,0.00018,2]
[394939691,1764174644763,-381418.5765377,0.00018,2]
[394939710,1764174646394,-4185.69904297,0.00018,2]
[394939711,1764174646625,-222.0,0.00017733,2]
[394939712,1764174646634,-1238.94445003,0.00018,2]
[394939713,1764174646645,-373.96952708,0.00018,2]
[394939758,1764175135102,-500.0,0.000178,2]
[394939759,1764175135126,-275.06625061,0.00017837,2]
[394939760,1764175135152,-198.21610105,0.00017873,2]
[394939761,1764175135173,-1508.85721744,0.000179,2]
[394939762,1764175135194,-466.6808422,0.000179,2]
[394939763,1764175135217,-777.49908682,0.000179,2]
[394939764,1764175135240,-210.95904886,0.000179,2]
[394939765,1764175135262,-165.57435909,0.00017904,2]
[394939766,1764175135285,-182.75665047,0.00017904,2]
[394939767,1764175135310,-198.21610105,0.00017904,2]
[394939768,1764175135333,-3009.86114313,0.00017904,2]
[394939769,1764175135357,-500.0,0.00017973,2]
[394939770,1764175135383,-294.75690335,0.00017973,2]
[394939771,1764175135410,-500.0,0.00017973,2]
[394939772,1764175135434,-330.8232162,0.00017973,2]
[394939773,1764175135457,-500.0,0.00017973,2]
[394939774,1764175135479,-550.0,0.00017997,2]
[394939775,1764175135500,-1200.0,0.00017998,2]
[394939776,1764175135522,-300.0,0.00017998,2]
[394939777,1764175135544,-1000.0,0.00017999,2]
[394939778,1764175135566,-311.86,0.00017999,2]
[394939779,1764175135589,-737018.87307973,0.00018,2]
[394939780,1764175168738,-7544.28608722,0.000179,2]
[394939781,1764175168761,-300.0,0.00017999,2]
[394939782,1764175168784,-350.0,0.00017999,2]
[394939783,1764175168810,-500.0,0.00017999,2]
[394939784,1764175168835,-500.0,0.00017999,2]
[394939785,1764175168863,-500.0,0.00017999,2]
[394939786,1764175168888,-500.0,0.00017999,2]
[394939787,1764175168910,-500.0,0.00017999,2]
[394939788,1764175168931,-500.0,0.00017999,2]
[394939789,1764175168960,-555.01644016,0.00017999,2]
[394939790,1764175168982,-500.0,0.00017999,2]
[394939791,1764175169005,-418.9923417,0.00017999,2]
[394939792,1764175169027,-728331.70513092,0.00018,2]
[394939793,1764175200645,-182.07891693,0.000179,2]
[394939794,1764175200666,-180817.92108307,0.00018,2]
[394939797,1764175286872,152.5,0.00013699,2]
[394939798,1764175596526,-150.0,0.000162,2]
[394939799,1764175596549,-150.0,0.000162,2]
[394939800,1764175596570,-150.0,0.000162,2]
[394939801,1764175596592,-150.0,0.000162,2]
[394939802,1764175596612,-191.78,0.00016712,2]
[394939803,1764175596634,-150.0,0.000171,2]
[394939804,1764175596656,-250.0,0.00017176,2]
[394939805,1764175596677,-625.416,0.0001764,2]
[394939806,1764175596698,-166.817,0.0001764,2]
[394939807,1764175596718,-1401.93330057,0.00017781,2]
[394939808,1764175596739,-300.0,0.00017898,2]
[394939809,1764175596764,-1200.0,0.00017899,2]
[394939810,1764175596786,-1200.0,0.00017899,2]
[394939811,1764175596807,-300.0,0.00017899,2]
[394939812,1764175596827,-175.87900162,0.000179,2]
[394939813,1764175596848,-3580.45961671,0.000179,2]
[394939814,1764175596868,-181.74005016,0.000179,2]
[394939815,1764175596889,-1509.16734841,0.000179,2]
[394939816,1764175596912,-151.0,0.000179,2]
[394939817,1764175596933,-163.19318956,0.000179,2]
[394939818,1764175596954,-151.0,0.00017972,2]
[394939819,1764175596974,-151.0,0.00017972,2]
[394939820,1764175596994,-500.0,0.00017973,2]
[394939821,1764175597014,-500.0,0.00017973,2]
[394939822,1764175597033,-146.61449297,0.00017973,2]
[394939852,1764175831415,-181.74005016,0.000179,2]
[394939853,1764175831424,-3222.41365503,0.000179,2]
[394939854,1764175831433,-163.19318955,0.000179,2]
[394939855,1764175831442,-1200.0,0.00017972,2]
[394939856,1764175831451,-300.0,0.00017972,2]
[394939857,1764175831460,-25.02848742,0.00017973,2]
[394939858,1764175831469,-500.0,0.00017973,2]
[394939859,1764175831478,-531.00503952,0.00017973,2]
[394939860,1764175831487,-500.0,0.00017973,2]
[394939861,1764175831496,-283.83511784,0.00017973,2]
[394939862,1764175831506,-500.0,0.00017973,2]
[394939863,1764175831519,-500.99656913,0.00017973,2]
[394939864,1764175831528,-500.0,0.00017973,2]
[394939865,1764175831537,-500.0,0.00017973,2]
[394939866,1764175831547,-337.56282499,0.00017973,2]
[394939867,1764175831558,-328.13166737,0.0001799,2]
[394939868,1764175831567,-500.0,0.00017999,2]
[394939869,1764175831577,-500.0,0.00017999,2]
[394939870,1764175831586,-500.0,0.00017999,2]
[394939871,1764175831596,-500.0,0.00017999,2]
[394939872,1764175831605,-500.0,0.00017999,2]
[394939873,1764175831614,-500.0,0.00017999,2]
[394939874,1764175831624,-500.0,0.00017999,2]
[394939875,1764175831633,-695.52,0.00017999,2]
[394939877,1764175831642,-293.29463919,0.00017999,2]
[394939879,1764175831651,-500.0,0.00017999,2]
[394939880,1764175831660,-195.79182833,0.00017999,2]
[394939881,1764175831669,-500.0,0.00017999,2]
[394939882,1764175831678,-500.0,0.00017999,2]
[394939883,1764175831687,-413.88740078,0.00017999,2]
[394939884,1764175831698,-500.0,0.00017999,2]
[394939885,1764175831707,-500.0,0.00017999,2]
[394939886,1764175831717,-500.0,0.00017999,2]
[394939887,1764175831726,-500.0,0.00017999,2]
[394939888,1764175831735,-500.0,0.00017999,2]
[394939889,1764175831744,-500.0,0.00017999,2]
[394939890,1764175831753,-500.0,0.00017999,2]
[394939891,1764175831762,-500.0,0.00017999,2]
[394939892,1764175831771,-500.0,0.00017999,2]
[394939894,1764175831780,-500.0,0.00017999,2]
[394939895,1764175831789,-500.0,0.00017999,2]
[394939896,1764175831798,-500.0,0.00017999,2]
[394939897,1764175831807,-500.0,0.00017999,2]
[394939898,1764175831816,-290.72598794,0.00017999,2]
[394939899,1764175831826,-500.0,0.00017999,2]
[394939900,1764175831835,-500.0,0.00017999,2]
[394939901,1764175831844,-500.0,0.00017999,2]
[394939902,1764175831854,-500.0,0.00017999,2]
[394939903,1764175831862,-500.0,0.00017999,2]
[394939904,1764175831872,-500.0,0.00017999,2]
[394939905,1764175831881,-500.0,0.00017999,2]
[394939906,1764175831890,-500.0,0.00017999,2]
[394939907,1764175831899,-500.0,0.00017999,2]
[394939908,1764175831908,-500.0,0.00017999,2]
[394939909,1764175831918,-500.0,0.00017999,2]
[394939910,1764175831927,-500.0,0.00017999,2]
[394939911,1764175831937,-500.0,0.00017999,2]
[394939912,1764175831946,-500.0,0.00017999,2]
[394939913,1764175831955,-500.0,0.00017999,2]
[394939914,1764175831964,-500.0,0.00017999,2]
[394939915,1764175831973,-500.0,0.00017999,2]
[394939916,1764175831982,-500.0,0.00017999,2]
[394939917,1764175831991,-500.0,0.00017999,2]
[394939918,1764175832000,-500.0,0.00017999,2]
[394939919,1764175832010,-500.0,0.00017999,2]
[394939920,1764175832019,-500.0,0.00017999,2]
[394939921,1764175832027,-500.0,0.00017999,2]
[394939922,1764175832037,-500.0,0.00017999,2]
[394939923,1764175832046,-500.0,0.00017999,2]
[394939924,1764175832055,-500.0,0.00017999,2]
[394939925,1764175832064,-500.0,0.00017999,2]
[394939926,1764175832073,-500.0,0.00017999,2]
[394939927,1764175832083,-500.0,0.00017999,2]
[394939928,1764175832092,-500.0,0.00017999,2]
[394939929,1764175832101,-500.0,0.00017999,2]
[394939930,1764175832110,-500.0,0.00017999,2]
[394939931,1764175832119,-500.0,0.00017999,2]
[394939932,1764175832128,-500.0,0.00017999,2]
[394939933,1764175832138,-500.0,0.00017999,2]
[394939934,1764175832147,-500.0,0.00017999,2]
[394939935,1764175832156,-500.0,0.00017999,2]
[394939936,1764175832164,-500.0,0.00017999,2]
[394939937,1764175832173,-500.0,0.00017999,2]
[394939938,1764175832182,-500.0,0.00017999,2]
[394939939,1764175832191,-500.0,0.00017999,2]
[394939940,1764175832200,-500.0,0.00017999,2]
[394939941,1764175832209,-500.0,0.00017999,2]
[394939942,1764175832218,-500.0,0.00017999,2]
[394939943,1764175832227,-500.0,0.00017999,2]
[394939944,1764175832236,-500.0,0.00017999,2]
[394939945,1764175832244,-500.0,0.00017999,2]
[394939946,1764175832253,-500.0,0.00017999,2]
[394939947,1764175832262,-500.0,0.00017999,2]
[394939948,1764175832271,-500.0,0.00017999,2]
[394939949,1764175832279,-500.0,0.00017999,2]
[394939950,1764175832288,-500.0,0.00017999,2]
[394939951,1764175832297,-500.0,0.00017999,2]
[394939952,1764175832306,-500.0,0.00017999,2]
[394939953,1764175832315,-500.0,0.00017999,2]
[394939954,1764175832324,-500.0,0.00017999,2]
[394939955,1764175832333,-500.0,0.00017999,2]
[394939956,1764175832342,-500.0,0.00017999,2]
[394939957,1764175832351,-500.0,0.00017999,2]
[394939958,1764175832360,-600.0,0.00017999,2]
[394939959,1764175832369,-500.0,0.00017999,2]
[394939960,1764175832378,-500.0,0.00017999,2]
[394939961,1764175832389,-500.0,0.00017999,2]
[394939962,1764175832399,-500.0,0.00017999,2]
[394939963,1764175832408,-500.0,0.00017999,2]
[394939964,1764175832418,-258.55045327,0.00018,2]
[394939965,1764175832427,-166.00581416,0.00018,2]
[394939966,1764175832437,-58011.50785878,0.00018,2]
[394939967,1764175832450,-572.0678,0.00018,2]
[394939968,1764175832462,-299.11575549,0.00018,2]
[394939969,1764175832473,-546.54497025,0.00018,2]
[394939970,1764175832483,-5268.23399029,0.00018,2]
[394939971,1764175832494,-562.249999,0.00018,2]
[394939972,1764175832505,-345.20733945,0.00018,2]
[394939973,1764175832519,-59225.18887026,0.00018,2]
[394939974,1764175832530,-724.37785151,0.00018,2]
[394939975,1764175832766,-3852.27432576,0.00018,2]
[394939976,1764175837433,-241.72682264,0.00018,2]
[394939988,1764175839629,-334.9733042,0.00018,2]
[394939989,1764175839789,-3608.27472446,0.00018,2]
[394939990,1764175839800,-10250.8,0.00018,2]
[394940004,1764175843709,-603.32475265,0.00018,2]
[394940005,1764175843720,-410.30174383,0.00018,2]
[394940006,1764175843732,-2200.51267322,0.00018,2]
[394940007,1764175843743,-880365.36961866,0.00018,2]
[394940020,1764175845505,-371.20071961,0.00018,2]
[394940021,1764175845614,-2200.23910581,0.00018,2]
[394940022,1764175845721,-2408.24814567,0.00018,2]
[394940023,1764175845849,-326.57002586,0.00018,2]
[394940024,1764175845861,-6131.99628703,0.00018,2]
[394940025,1764175845878,-292.7392725,0.00018,2]
[394940026,1764175846081,-448.76195889,0.00018,2]
[394940027,1764175846093,-1900.10729965,0.00018,2]
[394940028,1764175846104,-14015.15573765,0.00018,2]
[394940041,1764176323759,154.72,0.00019178,30]
[394940045,1764176700104,252.86,8.523e-05,2]
[394940046,1764176700367,252.86,8.972e-05,2]
[394940047,1764176700659,252.86,9.42e-05,2]
[394940048,1764176700895,252.86,9.869e-05,2]
[394940049,1764176701329,252.86,0.00010317,2]
[394940050,1764176701550,252.86,0.00010766,2]
[394940051,1764176701785,252.86,0.00011215,2]
[394940052,1764176702014,252.86,0.00011663,2]
[394940053,1764176702272,252.86,0.00012112,2]
[394940054,1764176702513,252.86,0.0001256,2]
[394940055,1764176702732,252.86,0.00013009,2]
[394940056,1764176703249,252.86,0.00013457,2]
[394940057,1764176703465,252.86,0.00013906,2]
[394940058,1764176703705,252.86,0.00014355,2]
[394940059,1764176965584,425.98,0.00024817,120]
[394940079,1764177031657,-252.86,0.00014803,2]
[394940080,1764177031668,-250.0,0.00015027,2]
[394940081,1764177031677,-70.97844801,0.00015252,2]
[394940082,1764177031688,-181.88155199,0.00015252,2]
[394940083,1764177031697,-252.86,0.000157,2]
[394940084,1764177031707,-252.86,0.00016149,2]
[394940085,1764177031716,-220.71005657,0.00016149,2]
[394940086,1764177031728,-398.16107655,0.00016149,2]
[394940087,1764177031737,-14.61620414,0.00016284,2]
[394940088,1764177031748,-235.38379586,0.00016284,2]
[394940089,1764177031758,-195.0,0.00016284,2]
[394940090,1764177031767,-104.97820414,0.00016284,2]
[394940091,1764177031778,-145.02179586,0.00016284,2]
[394940092,1764177031787,-195.0,0.00016284,2]
[394940093,1764177031797,-302.03208624,0.00016284,2]
[394940094,1764177031806,-425.98,0.00016544,2]
[394940095,1764177031816,-252.86,0.00016597,2]
[394940096,1764177031825,-2089.61,0.00016665,2]
[394940097,1764177031835,-1200.0,0.00016789,2]
[394940098,1764177031845,-2021.17,0.0001679,2]
[394940099,1764177031855,-250.0,0.00017,2]
[394940100,1764177031870,-195.0,0.00017028,2]
[394940101,1764177031879,-252.86,0.00017046,2]
[394940102,1764177031889,-300.0,0.00017058,2]
[394940103,1764177031898,-300.0,0.00017058,2]
[394940104,1764177031909,-2751.0,0.00017059,2]
[394940105,1764177031919,-195.0,0.00017215,2]
[394940106,1764177031928,-250.0,0.00017324,2]
[394940107,1764177031941,-200.0,0.00017341,2]
[394940108,1764177031951,-1200.0,0.00017394,2]
[394940109,1764177031960,-999.0,0.00017395,3]
[394940110,1764177031970,-150.0,0.00017395,2]
[394940111,1764177031979,-448.5,0.00017395,2]
[394940112,1764177031989,-500.0,0.00017443,2]
[394940113,1764177031999,-5521.98566903,0.00017453,2]
[394940114,1764177032011,-5503.33799134,0.00017453,2]
[394940115,1764177032022,-2000.56572915,0.00017453,2]
[394940116,1764177032034,-1131.66823526,0.00017453,2]
[394940117,1764177032046,-12514.94942001,0.00017453,2]
[394940118,1764177032057,-1349.84295521,0.00017453,2]
[394940119,1764177032067,-501.56205241,0.00017473,2]
[394940120,1764177032076,-261.43962235,0.00017473,2]
[394940121,1764177032086,-503.31842824,0.00017473,2]
[394940122,1764177032095,-500.57030653,0.00017473,2]
[394940123,1764177032104,-500.0,0.00017473,2]
[394940124,1764177032114,-500.0,0.00017473,2]
[394940125,1764177032123,-500.0,0.00017473,2]
[394940126,1764177032132,-150.0,0.00017543,2]
[394940127,1764177032142,-217.83804072,0.00017583,2]
[394940128,1764177032151,-550.0,0.00017583,2]
[394940129,1764177032161,-1000.0,0.000178,2]
[394940130,1764177032171,-319.10774003,0.0001782,2]
[394940131,1764177032180,-184.46786,0.0001782,2]
[394940132,1764177032189,-163.19318955,0.000179,2]
[394940133,1764177032199,-150.84371576,0.000179,2]
[394940134,1764177032208,-181.01245887,0.000179,2]
[394940135,1764177032218,-1963.10084283,0.000179,2]
[394940136,1764177032227,-164.63140875,0.000179,2]
[394940137,1764177032237,-2900.1722895,0.000179,2]
[394940138,1764177032246,-955.32170794,0.000179,2]
[394940139,1764177032255,-192.97090635,0.00017914,2]
[394940140,1764177032264,-171.30312499,0.00017973,2]
[394940141,1764177032274,-500.0,0.00017973,2]
[394940142,1764177032283,-500.0,0.00017973,2]
[394940144,1764177032293,-343.41238419,0.00017973,2]
[394940146,1764177032302,-500.0,0.00017973,2]
[394940148,1764177032312,-500.0,0.00017973,2]
[394940150,1764177032322,-500.0,0.00017973,2]
[394940152,1764177032331,-500.0,0.00017973,2]
[394940154,1764177032340,-500.0,0.00017973,2]
[394940156,1764177032349,-500.0,0.00017973,2]
[394940158,1764177032359,-500.0,0.00017973,2]
[394940160,1764177032368,-500.0,0.00017973,2]
[394940162,1764177032377,-500.0,0.00017973,2]
[394940165,1764177032387,-500.0,0.00017973,2]
[394940167,1764177032396,-500.0,0.00017973,2]
[394940169,1764177032406,-500.0,0.00017973,2]
[394940170,1764177032415,-167.9438246,0.00017973,2]
[394940173,1764177032424,-500.0,0.00017973,2]
[394940175,1764177032433,-560.43303466,0.00017973,2]
[394940176,1764177032442,-500.0,0.00017973,2]
[394940179,1764177032452,-500.0,0.00017973,2]
[394940181,1764177032461,-500.0,0.00017973,2]
[394940183,1764177032471,-500.0,0.00017973,2]
[394940185,1764177032480,-500.0,0.00017973,2]
[394940187,1764177032489,-500.0,0.00017973,2]
[394940189,1764177032498,-500.0,0.00017973,2]
[394940191,1764177032507,-597.09424157,0.00017991,2]
[394940193,1764177032516,-151.0,0.00017997,2]
[394940195,1764177032526,-151.0,0.00017997,2]
[394940197,1764177032535,-866.50413284,0.00017999,2]
[394940199,1764177032547,-231.83347088,0.00017999,2]
[394940201,1764177032556,-535.38689541,0.00017999,2]
[394940203,1764177032565,-4211.77765298,0.00017999,2]
[394940205,1764177032574,-500.0,0.00017999,2]
[394940207,1764177032583,-500.0,0.00017999,2]
[394940209,1764177032592,-500.0,0.00017999,2]
[394940211,1764177032601,-645.22318569,0.00017999,2]
[394940213,1764177032611,-250.67117171,0.00017999,2]
[394940215,1764177032621,-368.38492657,0.00017999,2]
[394940216,1764177032630,-2227.79207945,0.00017999,2]
[394940217,1764177032640,-500.0,0.00017999,2]
[394940218,1764177032649,-500.0,0.00017999,2]
[394940219,1764177032659,-500.0,0.00017999,2]
[394940220,1764177032668,-500.0,0.00017999,2]
[394940221,1764177032678,-500.0,0.00017999,2]
[394940222,1764177032687,-500.0,0.00017999,2]
[394940223,1764177032696,-300.0,0.00017999,2]
[394940224,1764177032706,-452.59436488,0.00017999,2]
[394940225,1764177032715,-400.54257957,0.00017999,2]
[394940226,1764177032724,-500.0,0.00017999,2]
[394940227,1764177032733,-500.0,0.00017999,2]
[394940228,1764177032743,-500.0,0.00017999,2]
[394940229,1764177032752,-500.0,0.00017999,2]
[394940230,1764177032761,-1000.0,0.00018,2]
[394940231,1764177032771,-741.60800904,0.00018,2]
[394940232,1764177032781,-166592.84303799,0.00018,2]
[394940235,1764177037606,-1370.716068,0.00018,2]
[394940236,1764177037659,-855.5,0.00018,2]
[394940237,1764177037715,-3349.6,0.00018,2]
[394940238,1764177037767,-8901.2,0.00018,2]
[394940239,1764177037823,-2290.94,0.00018,2]
[394940259,1764177039657,-44818.73396843,0.00018,2]
[394940260,1764177039668,-321772.37199874,0.00018,2]
[394940261,1764177039680,-193861.51185815,0.00018,2]
[394940262,1764177039689,-200.0,0.00018,2]
[394940263,1764177039699,-151.0,0.00018,2]
[394940264,1764177039709,-186.57498517,0.00018,2]
[394940265,1764177039721,-503.24440307,0.00018021,2]
[394940266,1764177039731,-1000.0,0.00018021,2]
[394940267,1764177039741,-1680.0,0.00018432,2]
[394940268,1764177039750,-964.07027394,0.00018521,2]
[394940269,1764177039759,-160.15975092,0.00018521,2]
[394940270,1764177039769,-500.0,0.00018521,2]
[394940271,1764177039778,-500.0,0.00018521,2]
[394940272,1764177039787,-500.0,0.00018521,2]
[394940273,1764177039797,-502.32696392,0.00018521,2]
[394940274,1764177039807,-500.0,0.00018521,2]
[394940275,1764177039816,-786.76685813,0.00018521,2]
[394940276,1764177039825,-1000.0,0.00018521,2]
[394940277,1764177039834,-500.0,0.00018521,2]
[394940278,1764177039844,-502.22800142,0.00018521,2]
[394940279,1764177039853,-500.0,0.00018521,2]
[394940280,1764177039868,-1001.02625705,0.00018521,2]
[394940281,1764177039877,-501.56098373,0.00018521,2]
[394940282,1764177039886,-1100.78439395,0.00018568,2]
[394940283,1764177039896,-425.98,0.00018612,2]
[394940284,1764177039906,-420.0,0.0001863,2]
[394940285,1764177039916,-385.0,0.00018673,2]
[394940286,1764177039926,-195.0,0.000187,2]
[394940287,1764177039937,-184.46787,0.0001882,2]
[394940288,1764177039947,-7522.49365905,0.0001899,2]
[394940289,1764177039956,-300.0,0.00019,2]
[394940290,1764177039968,-162.73962586,0.00019,2]
[394940291,1764177039978,-500.0,0.00019,2]
[394940292,1764177039987,-500.0,0.00019,2]
[394940293,1764177039996,-500.0,0.00019,2]
[394940294,1764177040006,-500.0,0.00019,2]
[394940295,1764177040016,-500.0,0.00019,2]
[394940296,1764177040026,-200.0,0.00019178,2]
[394940297,1764177040035,-200.0,0.00019178,2]
[394940299,1764177040045,-200.0,0.00019178,2]
[394940300,1764177040054,-200.0,0.0001937,2]
[394940301,1764177040066,-200.0,0.0001937,2]
[394940302,1764177040075,-847.65124006,0.00019548,2]
[394940303,1764177040084,-479.75499438,0.00019548,2]
[394940305,1764177040093,-200.0,0.00019563,2]
[394940306,1764177040103,-200.0,0.00019563,2]
[394940308,1764177040112,-200.0,0.00019759,2]
[394940310,1764177040121,-200.0,0.00019759,2]
[394940312,1764177040130,-184.46787,0.0001982,2]
[394940314,1764177040140,-300.0,0.00019863,2]
[394940315,1764177040149,-200.0,0.00019957,2]
[394940316,1764177040159,-200.0,0.00019957,2]
[394940317,1764177040168,-999.99,0.00020145,2]
[394940318,1764177040178,-299.99,0.00020145,7]
[394940319,1764177040187,-9229.98,0.00020145,5]
[394940320,1764177040197,-199.09,0.00020145,2]
[394940321,1764177040206,-895.28,0.00020145,2]
[394940322,1764177040216,-2942.24,0.00020145,2]
[394940323,1764177040225,-150.99,0.00020145,2]
[394940324,1764177040234,-326.68,0.00020145,2]
[394940325,1764177040243,-758.47,0.00020145,2]
[394940326,1764177040253,-150.99,0.00020145,2]
[394940327,1764177040262,-9999.99,0.00020145,2]
[394940328,1764177040271,-11576.22,0.00020145,2]
[394940329,1764177040280,-2114.31,0.00020145,2]
[394940330,1764177040291,-2959.98,0.00020145,2]
[394940331,1764177040300,-1171.51,0.00020145,2]
[394940332,1764177040310,-500.7127485,0.00020173,2]
[394940333,1764177040319,-501.84870213,0.00020173,2]
[394940334,1764177040328,-501.3286135,0.00020173,2]
[394940335,1764177040337,-503.08797881,0.00020173,2]
[394940336,1764177040347,-500.0,0.00020173,2]